[Event "Titled Tuesday Blitz December 13 Early 2022"]
[White "Araujo Sanchez, Josue"]
[Black "Khoroshev, Nikita"]
[WhiteFideId "6416896"]
[BlackFideId "14200287"]
[WhiteElo "2370"]
[BlackElo "2354"]
[Result "1-0"]
[Round "04"]
[TimeControl "180+1"]
[Date "2022.12.14"]
[WhiteClock "0:00:09"]
[BlackClock "0:00:09"]

1. c4 {[%clk 0:02:55]}  e5 {[%clk 0:02:50]} 2. d3 {[%clk 0:02:54]}  Nc6 {[%clk 0:02:49]} 3. g3 {[%clk 0:02:54]}  f5 {[%clk 0:02:49]} 4. Bg2 {[%clk 0:02:52]}  Nf6 {[%clk 0:02:49]} 5. Nc3 {[%clk 0:02:53]}  Bb4 {[%clk 0:02:48]} 6. Nf3 {[%clk 0:02:53]}  O-O {[%clk 0:02:48]} 7. O-O {[%clk 0:02:53]}  Bxc3 {[%clk 0:02:48]} 8. bxc3 {[%clk 0:02:53]}  d6 {[%clk 0:02:49]} 9. Nh4 {[%clk 0:02:50]}  Qe8 {[%clk 0:02:42]} 10. f4 {[%clk 0:02:47]}  e4 {[%clk 0:02:35]} 11. Rb1 {[%clk 0:02:40]}  Rb8 {[%clk 0:02:29]} 12. Rb5 {[%clk 0:02:16]}  a6 {[%clk 0:02:14]} 13. Rxf5 {[%clk 0:02:08]}  Bxf5 {[%clk 0:02:12]} 14. Nxf5 {[%clk 0:02:09]}  Qe6 {[%clk 0:01:46]} 15. Nd4 {[%clk 0:01:56]}  Nxd4 {[%clk 0:01:45]} 16. cxd4 {[%clk 0:01:57]}  c6 {[%clk 0:01:30]} 17. f5 {[%clk 0:01:55]}  Qe7 {[%clk 0:01:30]} 18. Bg5 {[%clk 0:01:53]}  exd3 {[%clk 0:01:01]} 19. Qxd3 {[%clk 0:01:54]}  h6 {[%clk 0:01:00]} 20. Bh4 {[%clk 0:01:45]}  c5 {[%clk 0:00:55]} 21. Bd5+ {[%clk 0:01:38]}  Kh8 {[%clk 0:00:54]} 22. Be6 {[%clk 0:01:38]}  cxd4 {[%clk 0:00:52]} 23. Qxd4 {[%clk 0:01:39]}  Qc7 {[%clk 0:00:52]} 24. e3 {[%clk 0:01:31]}  Qc5 {[%clk 0:00:51]} 25. Rd1 {[%clk 0:01:29]}  b6 {[%clk 0:00:44]} 26. h3 {[%clk 0:01:27]}  Rbd8 {[%clk 0:00:37]} 27. Kg2 {[%clk 0:01:22]}  Qxd4 {[%clk 0:00:24]} 28. exd4 {[%clk 0:01:18]}  Rfe8 {[%clk 0:00:23]} 29. g4 {[%clk 0:01:16]}  Re7 {[%clk 0:00:21]} 30. Kf3 {[%clk 0:01:15]}  Rc7 {[%clk 0:00:21]} 31. a4 {[%clk 0:01:15]}  Kh7 {[%clk 0:00:18]} 32. Rb1 {[%clk 0:01:14]}  Rb7 {[%clk 0:00:17]} 33. Bd5 {[%clk 0:00:39]}  Rbb8 {[%clk 0:00:16]} 34. Bc6 {[%clk 0:00:33]}  Rdc8 {[%clk 0:00:15]} 35. d5 {[%clk 0:00:34]}  Rc7 {[%clk 0:00:14]} 36. Bxf6 {[%clk 0:00:27]}  gxf6 {[%clk 0:00:14]} 37. Re1 {[%clk 0:00:27]}  Kg7 {[%clk 0:00:15]} 38. Re6 {[%clk 0:00:26]}  Rd8 {[%clk 0:00:15]} 39. Ke4 {[%clk 0:00:26]}  Kf7 {[%clk 0:00:15]} 40. Kd4 {[%clk 0:00:20]}  Re7 {[%clk 0:00:15]} 41. Kc3 {[%clk 0:00:18]}  Rc7 {[%clk 0:00:15]} 42. Kb4 {[%clk 0:00:17]}  Re7 {[%clk 0:00:14]} 43. a5 {[%clk 0:00:17]}  bxa5+ {[%clk 0:00:13]} 44. Kxa5 {[%clk 0:00:18]}  Rc7 {[%clk 0:00:11]} 45. Kxa6 {[%clk 0:00:15]}  Rb8 {[%clk 0:00:11]} 46. Bb5 {[%clk 0:00:12]}  Rd8 {[%clk 0:00:10]} 47. Kb6 {[%clk 0:00:12]}  Re7 {[%clk 0:00:10]} 48. Kc6 {[%clk 0:00:10]}  Red7 {[%clk 0:00:08]} 49. Kb6 {[%clk 0:00:09]}  Re7 {[%clk 0:00:08]} 50. Ka5 {[%clk 0:00:09]}  Ra7+ {[%clk 0:00:08]} 51. Kb4 {[%clk 0:00:09]}  Re7 {[%clk 0:00:09]} 52. c5 {[%clk 0:00:08]}  dxc5+ {[%clk 0:00:09]} 53. Kxc5 {[%clk 0:00:09]}  Rc7+ {[%clk 0:00:08]} 54. Bc6 {[%clk 0:00:09]}  Ra7 {[%clk 0:00:09]} 55. d6 {[%clk 0:00:09]}  Ra5+ {[%clk 0:00:09]} 56. Kb6 {[%clk 0:00:10]}  Ra3 {[%clk 0:00:08]} 57. Re7+ {[%clk 0:00:09]}  Kf8 {[%clk 0:00:08]} 58. Kc7 {[%clk 0:00:10]}  Rda8 {[%clk 0:00:06]} 59. Bxa8 {[%clk 0:00:10]}  Rxa8 {[%clk 0:00:07]} 60. Rh7 {[%clk 0:00:10]}  Kg8 {[%clk 0:00:08]} 61. Re7 {[%clk 0:00:10]}  Kf8 {[%clk 0:00:08]} 62. Re6 {[%clk 0:00:09]}  Kf7 {[%clk 0:00:08]} 63. d7 {[%clk 0:00:10]}  Ra7+ {[%clk 0:00:08]} 64. Kc6 {[%clk 0:00:10]}  Ra6+ {[%clk 0:00:09]} 65. Kd5 {[%clk 0:00:09]}  Ra8 {[%clk 0:00:09]} 66. Re8 {[%clk 0:00:08]}  Rxe8 {[%clk 0:00:08]} 67. dxe8=Q+ {[%clk 0:00:09]}  Kxe8 {[%clk 0:00:09]} 68. Ke6 {[%clk 0:00:09]} 1-0


[Site "https://www.chess.com"]

[Event "Titled Tuesday Blitz December 13 Early 2022"]
[White "Asavasaetakul, Chawit"]
[Black "Khandelwal, Ankush"]
[WhiteFideId "6204856"]
[BlackFideId "413470"]
[WhiteElo "1919"]
[BlackElo "2271"]
[Result "1-0"]
[Round "04"]
[TimeControl "180+1"]
[Date "2022.12.14"]
[WhiteClock "0:00:42"]
[BlackClock "0:00:20"]

1. e4 {[%clk 0:03:00]}  c5 {[%clk 0:02:59]} 2. c3 {[%clk 0:02:59]}  d5 {[%clk 0:02:58]} 3. exd5 {[%clk 0:02:59]}  Qxd5 {[%clk 0:02:59]} 4. d4 {[%clk 0:03:00]}  g6 {[%clk 0:02:42]} 5. Nf3 {[%clk 0:02:53]}  Bg7 {[%clk 0:02:41]} 6. dxc5 {[%clk 0:02:48]}  Qxc5 {[%clk 0:02:34]} 7. Be3 {[%clk 0:02:47]}  Qc7 {[%clk 0:02:33]} 8. Na3 {[%clk 0:02:45]}  a6 {[%clk 0:02:32]} 9. Nc4 {[%clk 0:02:41]}  Nd7 {[%clk 0:02:32]} 10. a4 {[%clk 0:02:41]}  Nh6 {[%clk 0:02:12]} 11. Qd2 {[%clk 0:02:26]}  Nf5 {[%clk 0:02:11]} 12. Bf4 {[%clk 0:02:26]}  e5 {[%clk 0:02:09]} 13. Bg5 {[%clk 0:01:59]}  O-O {[%clk 0:02:02]} 14. g4 {[%clk 0:01:51]}  e4 {[%clk 0:01:58]} 15. gxf5 {[%clk 0:01:41]}  exf3 {[%clk 0:01:58]} 16. fxg6 {[%clk 0:01:36]}  Re8+ {[%clk 0:01:54]} 17. Be3 {[%clk 0:01:36]}  hxg6 {[%clk 0:01:53]} 18. Nd6 {[%clk 0:01:31]}  Re6 {[%clk 0:01:48]} 19. O-O-O {[%clk 0:01:31]}  b5 {[%clk 0:01:46]} 20. Nxc8 {[%clk 0:01:30]}  Bxc3 {[%clk 0:01:29]} 21. Qxc3 {[%clk 0:01:14]}  Qb7 {[%clk 0:01:09]} 22. Na7 {[%clk 0:00:47]}  Rxa7 {[%clk 0:01:06]} 23. Kb1 {[%clk 0:00:47]}  Ra8 {[%clk 0:00:50]} 24. Bh3 {[%clk 0:00:46]}  Rc8 {[%clk 0:00:29]} 25. Qd4 {[%clk 0:00:44]}  Rc4 {[%clk 0:00:19]} 26. Qxd7 {[%clk 0:00:43]}  Qe4+ {[%clk 0:00:19]} 27. Qd3 {[%clk 0:00:43]}  Qh4 {[%clk 0:00:20]} 28. Bxe6 {[%clk 0:00:42]}  fxe6 {[%clk 0:00:20]} 29. Qxg6+ {[%clk 0:00:42]} 1-0


[Site "https://www.chess.com"]

[Event "Titled Tuesday Blitz December 13 Early 2022"]
[White "Bluebaum, Matthias"]
[Black "Aradhya, Garg"]
[WhiteFideId "24651516"]
[BlackFideId "25006746"]
[WhiteElo "2634"]
[BlackElo "2278"]
[Result "1-0"]
[Round "04"]
[TimeControl "180+1"]
[Date "2022.12.13"]
[WhiteClock "0:00:26"]
[BlackClock "0:00:03"]

1. d4 {[%clk 0:03:00]}  d5 {[%clk 0:02:59]} 2. c4 {[%clk 0:03:01]}  c6 {[%clk 0:02:59]} 3. Nc3 {[%clk 0:03:01]}  Nf6 {[%clk 0:02:59]} 4. Nf3 {[%clk 0:03:02]}  dxc4 {[%clk 0:02:59]} 5. e4 {[%clk 0:03:02]}  b5 {[%clk 0:02:58]} 6. Qc2 {[%clk 0:03:03]}  Na6 {[%clk 0:02:50]} 7. Be2 {[%clk 0:03:02]}  Bb7 {[%clk 0:02:48]} 8. e5 {[%clk 0:03:01]}  Nb4 {[%clk 0:02:47]} 9. Qb1 {[%clk 0:03:00]}  Nfd5 {[%clk 0:02:47]} 10. e6 {[%clk 0:02:59]}  f6 {[%clk 0:02:48]} 11. Nh4 {[%clk 0:02:58]}  Qd6 {[%clk 0:02:46]} 12. Bh5+ {[%clk 0:02:53]}  g6 {[%clk 0:02:35]} 13. Be2 {[%clk 0:02:26]}  Qxe6 {[%clk 0:02:28]} 14. O-O {[%clk 0:02:26]}  Nxc3 {[%clk 0:02:22]} 15. bxc3 {[%clk 0:02:26]}  Qxe2 {[%clk 0:02:22]} 16. Qxb4 {[%clk 0:02:17]}  a5 {[%clk 0:01:37]} 17. Qc5 {[%clk 0:02:14]}  Ra6 {[%clk 0:01:37]} 18. d5 {[%clk 0:01:57]}  e5 {[%clk 0:01:36]} 19. d6 {[%clk 0:01:50]}  Qe4 {[%clk 0:01:31]} 20. f4 {[%clk 0:01:37]}  Qd5 {[%clk 0:01:25]} 21. Qf2 {[%clk 0:01:37]}  e4 {[%clk 0:01:23]} 22. Ba3 {[%clk 0:01:34]}  Kd7 {[%clk 0:00:40]} 23. Rad1 {[%clk 0:01:23]}  Qf7 {[%clk 0:00:41]} 24. f5 {[%clk 0:01:17]}  g5 {[%clk 0:00:40]} 25. Rfe1 {[%clk 0:01:18]}  gxh4 {[%clk 0:00:32]} 26. Rxe4 {[%clk 0:01:18]}  Rg8 {[%clk 0:00:32]} 27. Re7+ {[%clk 0:00:53]}  Bxe7 {[%clk 0:00:29]} 28. dxe7+ {[%clk 0:00:54]}  Kc8 {[%clk 0:00:25]} 29. Bc5 {[%clk 0:00:54]}  b4 {[%clk 0:00:20]} 30. Qf4 {[%clk 0:00:33]}  b3 {[%clk 0:00:18]} 31. Qd6 {[%clk 0:00:33]}  Qe8 {[%clk 0:00:17]} 32. Qe6+ {[%clk 0:00:32]}  Kb8 {[%clk 0:00:17]} 33. Qxg8 {[%clk 0:00:31]}  Qxg8 {[%clk 0:00:17]} 34. Rd8+ {[%clk 0:00:32]}  Bc8 {[%clk 0:00:17]} 35. Rxg8 {[%clk 0:00:30]}  bxa2 {[%clk 0:00:17]} 36. Rxc8+ {[%clk 0:00:31]}  Kb7 {[%clk 0:00:17]} 37. e8=Q {[%clk 0:00:23]}  a1=Q+ {[%clk 0:00:16]} 38. Kf2 {[%clk 0:00:24]}  Qb2+ {[%clk 0:00:16]} 39. Kf3 {[%clk 0:00:25]}  Qxc3+ {[%clk 0:00:16]} 40. Kg4 {[%clk 0:00:26]}  Qe5 {[%clk 0:00:03]} 41. Qd7+ {[%clk 0:00:25]}  Qc7 {[%clk 0:00:03]} 42. Qxc7# {[%clk 0:00:26]} 1-0


[Site "https://www.chess.com"]

[Event "Titled Tuesday Blitz December 13 Early 2022"]
[White "Bodnaruk, Anastasia"]
[Black "Schut, Han"]
[WhiteFideId "4181751"]
[BlackFideId "1005561"]
[WhiteElo "2314"]
[BlackElo "2024"]
[Result "1-0"]
[Round "04"]
[TimeControl "180+1"]
[Date "2022.12.14"]
[WhiteClock "0:00:53"]
[BlackClock "0:00:07"]

1. e4 {[%clk 0:03:00]}  c5 {[%clk 0:02:59]} 2. Nc3 {[%clk 0:03:00]}  Nc6 {[%clk 0:02:59]} 3. Bb5 {[%clk 0:03:00]}  Nd4 {[%clk 0:02:59]} 4. Bc4 {[%clk 0:03:00]}  g6 {[%clk 0:02:57]} 5. Nf3 {[%clk 0:02:59]}  Bg7 {[%clk 0:02:57]} 6. Nxd4 {[%clk 0:02:59]}  Bxd4 {[%clk 0:02:51]} 7. Qf3 {[%clk 0:02:53]}  e6 {[%clk 0:02:48]} 8. d3 {[%clk 0:02:33]}  Ne7 {[%clk 0:02:45]} 9. Bh6 {[%clk 0:02:30]}  a6 {[%clk 0:02:23]} 10. a4 {[%clk 0:02:29]}  Qa5 {[%clk 0:02:19]} 11. O-O {[%clk 0:02:27]}  Bxc3 {[%clk 0:02:08]} 12. bxc3 {[%clk 0:02:26]}  Qxc3 {[%clk 0:02:09]} 13. Bg5 {[%clk 0:02:18]}  f5 {[%clk 0:01:40]} 14. Qg3 {[%clk 0:02:04]}  Qg7 {[%clk 0:01:32]} 15. Qd6 {[%clk 0:01:43]}  b6 {[%clk 0:01:22]} 16. Qxb6 {[%clk 0:01:40]}  h6 {[%clk 0:00:53]} 17. Be3 {[%clk 0:01:36]}  O-O {[%clk 0:00:45]} 18. Qxc5 {[%clk 0:01:32]}  Nc6 {[%clk 0:00:37]} 19. Qd6 {[%clk 0:01:19]}  f4 {[%clk 0:00:20]} 20. Bc5 {[%clk 0:01:19]}  Rf7 {[%clk 0:00:15]} 21. Rab1 {[%clk 0:01:15]}  f3 {[%clk 0:00:15]} 22. g3 {[%clk 0:01:14]}  Ne5 {[%clk 0:00:11]} 23. Ba2 {[%clk 0:00:58]}  Qf6 {[%clk 0:00:07]} 24. Bd4 {[%clk 0:00:54]}  Qg5 {[%clk 0:00:06]} 25. Qxe5 {[%clk 0:00:53]}  Rf5 {[%clk 0:00:07]} 26. Qg7# {[%clk 0:00:53]} 1-0


[Site "https://www.chess.com"]

[Event "Titled Tuesday Blitz December 13 Early 2022"]
[White "Bogaudinov, Rushan"]
[Black "Stijve, Theo"]
[WhiteFideId "4129288"]
[BlackFideId "1331132"]
[WhiteElo "2028"]
[BlackElo "2256"]
[Result "0-1"]
[Round "04"]
[TimeControl "180+1"]
[Date "2022.12.14"]
[WhiteClock "0:00:02"]
[BlackClock "0:00:19"]

1. a3 {[%clk 0:02:15]}  g6 {[%clk 0:02:59]} 2. d4 {[%clk 0:02:14]}  Nf6 {[%clk 0:02:57]} 3. e3 {[%clk 0:02:15]}  Bg7 {[%clk 0:02:56]} 4. Nf3 {[%clk 0:02:16]}  O-O {[%clk 0:02:53]} 5. c4 {[%clk 0:02:17]}  d5 {[%clk 0:02:40]} 6. c5 {[%clk 0:02:15]}  b6 {[%clk 0:02:37]} 7. b4 {[%clk 0:02:15]}  a5 {[%clk 0:02:36]} 8. Bb2 {[%clk 0:02:15]}  Ne4 {[%clk 0:02:29]} 9. Nc3 {[%clk 0:02:11]}  bxc5 {[%clk 0:02:22]} 10. bxc5 {[%clk 0:02:07]}  Nxc3 {[%clk 0:02:13]} 11. Bxc3 {[%clk 0:02:07]}  Ba6 {[%clk 0:02:14]} 12. Bxa6 {[%clk 0:02:05]}  Rxa6 {[%clk 0:02:13]} 13. O-O {[%clk 0:02:02]}  Nd7 {[%clk 0:02:11]} 14. Rb1 {[%clk 0:01:55]}  Nxc5 {[%clk 0:02:07]} 15. Rb5 {[%clk 0:01:44]}  Ne4 {[%clk 0:01:51]} 16. Bxa5 {[%clk 0:01:43]}  Qa8 {[%clk 0:01:48]} 17. Bb4 {[%clk 0:01:34]}  c6 {[%clk 0:01:45]} 18. Rc5 {[%clk 0:01:31]}  Nxc5 {[%clk 0:01:43]} 19. Bxc5 {[%clk 0:01:30]}  Re8 {[%clk 0:01:44]} 20. h4 {[%clk 0:01:13]}  Ra4 {[%clk 0:01:34]} 21. h5 {[%clk 0:01:10]}  Rc4 {[%clk 0:01:33]} 22. Qd3 {[%clk 0:01:03]}  e5 {[%clk 0:01:28]} 23. Nd2 {[%clk 0:00:55]}  Ra4 {[%clk 0:01:17]} 24. Nb3 {[%clk 0:00:45]}  e4 {[%clk 0:01:05]} 25. Qc2 {[%clk 0:00:45]}  gxh5 {[%clk 0:01:03]} 26. Qe2 {[%clk 0:00:37]}  Rb8 {[%clk 0:00:53]} 27. Nc1 {[%clk 0:00:34]}  Rb1 {[%clk 0:00:48]} 28. Qxh5 {[%clk 0:00:33]}  Qa6 {[%clk 0:00:43]} 29. Qg4 {[%clk 0:00:23]}  Rc4 {[%clk 0:00:38]} 30. Qd7 {[%clk 0:00:18]}  h6 {[%clk 0:00:30]} 31. Qe8+ {[%clk 0:00:17]}  Kh7 {[%clk 0:00:30]} 32. Qxf7 {[%clk 0:00:13]}  Rcxc1 {[%clk 0:00:28]} 33. Bf8 {[%clk 0:00:02]}  Rxf1+ {[%clk 0:00:19]} 34. Kh2 {[%clk 0:00:03]}  Rh1+ {[%clk 0:00:19]} 35. Kg3 {[%clk 0:00:03]}  Rb7 {[%clk 0:00:18]} 36. Qf5+ {[%clk 0:00:02]}  Kh8 {[%clk 0:00:19]} 0-1


[Site "https://www.chess.com"]

[Event "Titled Tuesday Blitz December 13 Early 2022"]
[White "Bruned, Boris"]
[Black "Bettalli, Francesco"]
[WhiteFideId "621790"]
[BlackFideId "2816453"]
[WhiteElo "2049"]
[BlackElo "2216"]
[Result "0-1"]
[Round "04"]
[TimeControl "180+1"]
[Date "2022.12.14"]
[WhiteClock "0:00:01"]
[BlackClock "0:00:43"]

1. b3 {[%clk 0:03:00]}  g6 {[%clk 0:02:47]} 2. Bb2 {[%clk 0:03:01]}  Nf6 {[%clk 0:02:47]} 3. Bxf6 {[%clk 0:03:01]}  exf6 {[%clk 0:02:47]} 4. c4 {[%clk 0:03:01]}  Bg7 {[%clk 0:02:48]} 5. Nc3 {[%clk 0:03:02]}  O-O {[%clk 0:02:49]} 6. g3 {[%clk 0:03:02]}  f5 {[%clk 0:02:49]} 7. Bg2 {[%clk 0:03:03]}  d6 {[%clk 0:02:49]} 8. e3 {[%clk 0:03:03]}  Nc6 {[%clk 0:02:48]} 9. Nge2 {[%clk 0:03:03]}  h5 {[%clk 0:02:46]} 10. h4 {[%clk 0:03:03]}  a5 {[%clk 0:02:44]} 11. d4 {[%clk 0:03:00]}  Re8 {[%clk 0:02:39]} 12. O-O {[%clk 0:03:00]}  Bh6 {[%clk 0:02:33]} 13. Qd3 {[%clk 0:02:57]}  Kh8 {[%clk 0:02:32]} 14. a3 {[%clk 0:02:57]}  f6 {[%clk 0:02:31]} 15. Nf4 {[%clk 0:02:36]}  Rg8 {[%clk 0:02:29]} 16. Ncd5 {[%clk 0:02:05]}  Rg7 {[%clk 0:02:09]} 17. b4 {[%clk 0:01:54]}  Bd7 {[%clk 0:02:08]} 18. b5 {[%clk 0:01:47]}  Na7 {[%clk 0:02:04]} 19. a4 {[%clk 0:01:43]}  Be8 {[%clk 0:02:02]} 20. Ne6 {[%clk 0:01:30]}  Qd7 {[%clk 0:02:02]} 21. Nxg7 {[%clk 0:01:29]}  Qxg7 {[%clk 0:02:03]} 22. Nf4 {[%clk 0:01:28]}  g5 {[%clk 0:02:02]} 23. Ne2 {[%clk 0:00:26]}  Bd7 {[%clk 0:01:50]} 24. Bxb7 {[%clk 0:00:24]}  Re8 {[%clk 0:01:38]} 25. Bg2 {[%clk 0:00:08]}  gxh4 {[%clk 0:01:34]} 26. gxh4 {[%clk 0:00:08]}  Qg4 {[%clk 0:01:28]} 27. Ng3 {[%clk 0:00:06]}  f4 {[%clk 0:01:14]} 28. exf4 {[%clk 0:00:04]}  Bxf4 {[%clk 0:01:14]} 29. Qd1 {[%clk 0:00:03]}  Qxh4 {[%clk 0:01:13]} 30. Qxh5+ {[%clk 0:00:04]}  Qxh5 {[%clk 0:01:13]} 31. Nxh5 {[%clk 0:00:04]}  Bg5 {[%clk 0:01:12]} 32. Ng3 {[%clk 0:00:04]}  Kg7 {[%clk 0:01:11]} 33. Rae1 {[%clk 0:00:05]}  Rh8 {[%clk 0:01:11]} 34. Ne4 {[%clk 0:00:03]}  Bf4 {[%clk 0:01:09]} 35. Ng3 {[%clk 0:00:03]}  Nc8 {[%clk 0:01:09]} 36. Re4 {[%clk 0:00:03]}  Bd2 {[%clk 0:01:07]} 37. Re2 {[%clk 0:00:02]}  Bb4 {[%clk 0:01:07]} 38. Rd1 {[%clk 0:00:01]}  Nb6 {[%clk 0:01:07]} 39. c5 {[%clk 0:00:02]}  Nxa4 {[%clk 0:01:07]} 40. cxd6 {[%clk 0:00:02]}  cxd6 {[%clk 0:01:07]} 41. Re7+ {[%clk 0:00:02]}  Kg6 {[%clk 0:01:07]} 42. Rxd7 {[%clk 0:00:03]}  Nc3 {[%clk 0:01:07]} 43. Rc1 {[%clk 0:00:02]}  Nxb5 {[%clk 0:01:07]} 44. Rb7 {[%clk 0:00:01]}  Nxd4 {[%clk 0:01:07]} 45. Rcc7 {[%clk 0:00:01]}  Kg5 {[%clk 0:00:50]} 46. Rc4 {[%clk 0:00:01]}  Bc5 {[%clk 0:00:48]} 47. Rg7+ {[%clk 0:00:01]}  Kf4 {[%clk 0:00:45]} 48. Rc7 {[%clk 0:00:01]}  Ke5 {[%clk 0:00:43]} 0-1


[Site "https://www.chess.com"]

[Event "Titled Tuesday Blitz December 13 Early 2022"]
[White "Budrewicz, Krzysztof"]
[Black "Miszler, Levente"]
[WhiteFideId "1127950"]
[BlackFideId "763276"]
[WhiteElo "2188"]
[BlackElo "2176"]
[Result "1-0"]
[Round "04"]
[TimeControl "180+1"]
[Date "2022.12.14"]
[WhiteClock "0:00:37"]
[BlackClock "0:00:02"]

1. d4 {[%clk 0:03:00]}  d5 {[%clk 0:02:59]} 2. c4 {[%clk 0:03:00]}  c6 {[%clk 0:02:59]} 3. Nc3 {[%clk 0:02:59]}  Nf6 {[%clk 0:02:58]} 4. e3 {[%clk 0:02:59]}  e6 {[%clk 0:02:55]} 5. Nf3 {[%clk 0:02:59]}  Nbd7 {[%clk 0:02:51]} 6. Qc2 {[%clk 0:02:58]}  Be7 {[%clk 0:02:50]} 7. g4 {[%clk 0:02:58]}  Nxg4 {[%clk 0:02:21]} 8. Rg1 {[%clk 0:02:57]}  f5 {[%clk 0:02:21]} 9. h3 {[%clk 0:02:56]}  Ngf6 {[%clk 0:02:16]} 10. Rxg7 {[%clk 0:02:56]}  Bf8 {[%clk 0:02:13]} 11. Rg2 {[%clk 0:02:55]}  Bh6 {[%clk 0:02:12]} 12. Bd2 {[%clk 0:02:54]}  Ne4 {[%clk 0:02:09]} 13. O-O-O {[%clk 0:02:54]}  Ndf6 {[%clk 0:02:08]} 14. Be2 {[%clk 0:02:53]}  Bd7 {[%clk 0:02:08]} 15. Ne5 {[%clk 0:02:53]}  Qe7 {[%clk 0:01:55]} 16. Qa4 {[%clk 0:02:47]}  a6 {[%clk 0:01:41]} 17. Qa5 {[%clk 0:02:36]}  Qd8 {[%clk 0:01:35]} 18. Qb4 {[%clk 0:02:30]}  Qc7 {[%clk 0:01:28]} 19. Kb1 {[%clk 0:02:26]}  Bf8 {[%clk 0:01:28]} 20. Qb3 {[%clk 0:02:25]}  b5 {[%clk 0:01:13]} 21. cxd5 {[%clk 0:02:25]}  cxd5 {[%clk 0:01:12]} 22. Be1 {[%clk 0:02:24]}  Nd6 {[%clk 0:01:11]} 23. f3 {[%clk 0:02:16]}  Nc4 {[%clk 0:01:10]} 24. Nxc4 {[%clk 0:02:14]}  bxc4 {[%clk 0:01:10]} 25. Qc2 {[%clk 0:02:14]}  Rb8 {[%clk 0:01:08]} 26. Bh4 {[%clk 0:02:12]}  Be7 {[%clk 0:01:04]} 27. Ka1 {[%clk 0:02:09]}  Qa5 {[%clk 0:01:02]} 28. Bg3 {[%clk 0:02:08]}  Rb7 {[%clk 0:00:58]} 29. Be5 {[%clk 0:02:08]}  Kf7 {[%clk 0:00:54]} 30. Rdg1 {[%clk 0:02:07]}  Rg8 {[%clk 0:00:43]} 31. Rxg8 {[%clk 0:02:07]}  Nxg8 {[%clk 0:00:44]} 32. Rg7+ {[%clk 0:02:07]}  Kf8 {[%clk 0:00:44]} 33. Rxh7 {[%clk 0:02:07]}  Bb4 {[%clk 0:00:27]} 34. f4 {[%clk 0:01:57]}  Ba4 {[%clk 0:00:27]} 35. Nxa4 {[%clk 0:01:24]}  Rxh7 {[%clk 0:00:26]} 36. a3 {[%clk 0:01:24]}  Be7 {[%clk 0:00:23]} 37. Bf1 {[%clk 0:01:24]}  Qe1+ {[%clk 0:00:22]} 38. Qb1 {[%clk 0:01:24]}  Qxb1+ {[%clk 0:00:22]} 39. Kxb1 {[%clk 0:01:24]}  Bf6 {[%clk 0:00:22]} 40. Bd6+ {[%clk 0:01:24]}  Be7 {[%clk 0:00:22]} 41. Be5 {[%clk 0:01:24]}  Nf6 {[%clk 0:00:23]} 42. Nc5 {[%clk 0:01:23]}  a5 {[%clk 0:00:19]} 43. Nxe6+ {[%clk 0:01:23]}  Ke8 {[%clk 0:00:18]} 44. Kc2 {[%clk 0:01:18]}  Ne4 {[%clk 0:00:13]} 45. Nc7+ {[%clk 0:01:14]}  Kd7 {[%clk 0:00:12]} 46. Nxd5 {[%clk 0:01:14]}  Rh6 {[%clk 0:00:11]} 47. Nc3 {[%clk 0:00:54]}  Nxc3 {[%clk 0:00:10]} 48. Kxc3 {[%clk 0:00:55]}  Rg6 {[%clk 0:00:10]} 49. Kxc4 {[%clk 0:00:52]}  Rg1 {[%clk 0:00:10]} 50. Bd3 {[%clk 0:00:52]}  Rc1+ {[%clk 0:00:10]} 51. Kb5 {[%clk 0:00:51]}  Rd1 {[%clk 0:00:10]} 52. Bxf5+ {[%clk 0:00:51]}  Ke8 {[%clk 0:00:10]} 53. e4 {[%clk 0:00:48]}  Rb1 {[%clk 0:00:09]} 54. d5 {[%clk 0:00:49]}  Bd8 {[%clk 0:00:06]} 55. d6 {[%clk 0:00:47]}  Rd1 {[%clk 0:00:05]} 56. d7+ {[%clk 0:00:47]}  Kf8 {[%clk 0:00:06]} 57. Kc4 {[%clk 0:00:43]}  Rc1+ {[%clk 0:00:06]} 58. Kd3 {[%clk 0:00:43]}  Rd1+ {[%clk 0:00:06]} 59. Kc2 {[%clk 0:00:43]}  Rf1 {[%clk 0:00:04]} 60. b4 {[%clk 0:00:43]}  axb4 {[%clk 0:00:04]} 61. axb4 {[%clk 0:00:44]}  Rf2+ {[%clk 0:00:03]} 62. Kb3 {[%clk 0:00:44]}  Rf1 {[%clk 0:00:03]} 63. Kc4 {[%clk 0:00:45]}  Be7 {[%clk 0:00:04]} 64. b5 {[%clk 0:00:45]}  Rd1 {[%clk 0:00:04]} 65. b6 {[%clk 0:00:44]}  Rc1+ {[%clk 0:00:05]} 66. Kb5 {[%clk 0:00:45]}  Rb1+ {[%clk 0:00:05]} 67. Ka6 {[%clk 0:00:45]}  Bd8 {[%clk 0:00:05]} 68. Bc7 {[%clk 0:00:43]}  Ra1+ {[%clk 0:00:04]} 69. Kb7 {[%clk 0:00:43]}  Ke7 {[%clk 0:00:05]} 70. Bxd8+ {[%clk 0:00:42]}  Kxd8 {[%clk 0:00:05]} 71. e5 {[%clk 0:00:41]}  Rb1 {[%clk 0:00:05]} 72. Bg4 {[%clk 0:00:41]}  Ra1 {[%clk 0:00:06]} 73. e6 {[%clk 0:00:41]}  Re1 {[%clk 0:00:05]} 74. f5 {[%clk 0:00:41]}  Rb1 {[%clk 0:00:05]} 75. f6 {[%clk 0:00:42]}  Rxb6+ {[%clk 0:00:05]} 76. Ka7 {[%clk 0:00:39]}  Rb7+ {[%clk 0:00:03]} 77. Ka6 {[%clk 0:00:39]}  Rb6+ {[%clk 0:00:01]} 78. Ka5 {[%clk 0:00:40]}  Rd6 {[%clk 0:00:01]} 79. Kb4 {[%clk 0:00:37]}  Rc6 {[%clk 0:00:01]} 80. Kb5 {[%clk 0:00:36]}  Rb6+ {[%clk 0:00:01]} 81. Kc5 {[%clk 0:00:36]}  Rc6+ {[%clk 0:00:01]} 82. Kd5 {[%clk 0:00:36]}  Rd6+ {[%clk 0:00:01]} 83. Ke5 {[%clk 0:00:37]}  Rxe6+ {[%clk 0:00:02]} 84. Kxe6 {[%clk 0:00:37]}  Kc7 {[%clk 0:00:02]} 85. Ke7 {[%clk 0:00:37]} 1-0


[Site "https://www.chess.com"]